Workbook

Sheet Individuelle forhandlinger
A1: Nåværende lønn og stilling | L1: Kravutveksling | M1: Akademikerforbundets krav | U1: Arbeidsgivers krav | AB1: Runde 1 | AC1: TILBUD 1 | AK1: KRAV 2 | AR1: Runde 2 | AS1: TILBUD 2 | BA1: KRAV 3 | BH1: Runde 3 | BI1: TILBUD 3 | BQ1: KRAV 4 | BX1: Runde 4 | BY1: TILBUD 4/ RESULTAT
A2: Gen. tillegg % | B2: 1.00 | G2: Lønnsmasse: | H2: =SUM(H4:H46) -> kr 1,300,000.00 | I2: =SUM(I4:I46) -> kr 13,000.00 | J2: =SUM(J4:J46) -> kr 1,313,000.00 | N2: Ind. Krav totalt: | O2: =SUM(O4:O46) -> kr 60,000.00 | V2: Ind. Krav totalt: | W2: =SUM(W4:W46) -> kr 30,000.00 | AD2: Ind. Krav totalt: | AE2: =SUM(AE4:AE46) -> kr 17,500.00 | AL2: Ind. Krav totalt: | AM2: =SUM(AM4:AM46) -> kr 47,500.00 | AT2: Ind. Krav totalt: | AU2: =SUM(AU4:AU46) -> kr 25,000.00 | BB2: Ind. Krav totalt: | BC2: =SUM(BC4:BC46) -> kr 32,000.00 | BJ2: Ind. Krav totalt: | BK2: =SUM(BK4:BK46) -> kr 27,250.00 | BR2: Ind. Krav totalt: | BS2: =SUM(BS4:BS46) -> kr 30,000.00 | BZ2: Ind. Krav totalt: | CA2: =SUM(CA4:CA46) -> kr 30,000.00
A3: Navn | B3: Mann/Kvinne | C3: Stilling | D3: Prioritet | E3: Lønnsstige | F3: Lønnsansiennitet (år) | G3: Stillingsprosent | H3: Årslønn | I3: Genenerelt tillegg | J3: Ny lønn etter gen. tillegg | M3: Stilling | N3: Stillingsprosent | O3: Indivduelt krav | P3: Krav om ny årslønn | Q3: Økning i % | R3: Total økning i kr | S3: Total økning i % | T3: < DIFF > | U3: Stilling | V3: Stillingsprosent | W3: Indivduelt krav | X3: Krav om ny årslønn | Y3: Økning i % | Z3: Total økning i kr | AA3: Total økning i % | AC3: Stilling | AD3: Stillingsprosent | AE3: Indivduelt krav | AF3: Krav om ny årslønn | AG3: Økning i % | AH3: Total økning i kr | AI3: Total økning i % | AJ3: < DIFF > | AK3: Stilling | AL3: Stillingsprosent | AM3: Indivduelt krav | AN3: Krav om ny årslønn | AO3: Økning i % | AP3: Total økning i kr | AQ3: Total økning i % | AS3: Stilling | AT3: Stillingsprosent | AU3: Indivduelt krav | AV3: Krav om ny årslønn | AW3: Økning i % | AX3: Total økning i kr | AY3: Total økning i % | AZ3: < DIFF > | BA3: Stilling | BB3: Stillingsprosent | BC3: Indivduelt krav | BD3: Krav om ny årslønn | BE3: Økning i % | BF3: Total økning i kr | BG3: Total økning i % | BI3: Stilling | BJ3: Stillingsprosent | BK3: Indivduelt krav | BL3: Krav om ny årslønn | BM3: Økning i % | BN3: Total økning i kr | BO3: Total økning i % | BP3: < DIFF > | BQ3: Stilling | BR3: Stillingsprosent | BS3: Indivduelt krav | BT3: Krav om ny årslønn | BU3: Økning i % | BV3: Total økning i kr | BW3: Total økning i % | BY3: Stilling | BZ3: Stillingsprosent | CA3: Indivduelt krav | CB3: Krav om ny årslønn | CC3: Økning i % | CD3: Total økning i kr | CE3: Total økning i %
A4: NN | B4: Mann | C4: Sekretær | D4: 1 | E4: =VLOOKUP(C4,Kilde!$D$2:$E$444,2) -> Direkte pl. | F4: 16 | G4: 100% | H4: kr 600,000.00 | I4: =H4*$B$2/100 -> kr 6,000.00 | J4: =I4+H4 -> kr 606,000.00 | M4: Seniorrådgiver | N4: 100% | O4: kr 50,000.00 | P4: =$O4+$J4 -> kr 656,000.00 | Q4: =$O4/$J4 -> 8.25% | R4: =$P4-$H4 -> kr 56,000.00 | S4: =$R4/$H4 -> 9.33% | T4: =O4-W4 -> kr 25,000.00 | U4: Seniorrådgiver | V4: 100% | W4: kr 25,000.00 | X4: =$W4+$J4 -> kr 631,000.00 | Y4: =$W4/$J4 -> 4.13% | Z4: =$X4-$H4 -> kr 31,000.00 | AA4: =$Z4/$H4 -> 5.17% | AC4: Seniorrådgiver | AD4: 100% | AE4: kr 15,000.00 | AF4: =$AE4+$J4 -> kr 621,000.00 | AG4: =$AE4/$J4 -> 2.48% | AH4: =$AF4-$H4 -> kr 21,000.00 | AI4: =$AH4/$H4 -> 3.50% | AJ4: =AE4-AM4 -> -kr 25,000.00 | AK4: Seniorrådgiver | AL4: 100% | AM4: kr 40,000.00 | AN4: =$AM4+$J4 -> kr 646,000.00 | AO4: =$AM4/$J4 -> 6.60% | AP4: =$AN4-$H4 -> kr 46,000.00 | AQ4: =$AP4/$H4 -> 7.67% | AS4: Seniorrådgiver | AT4: 100% | AU4: kr 20,000.00 | AV4: =$AU4+$J4 -> kr 626,000.00 | AW4: =$AU4/$J4 -> 3.30% | AX4: =$AV4-$H4 -> kr 26,000.00 | AY4: =$AX4/$H4 -> 4.33% | AZ4: =AU4-BC4 -> -kr 7,000.00 | BA4: Seniorrådgiver | BB4: 100% | BC4: kr 27,000.00 | BD4: =$BC4+$J4 -> kr 633,000.00 | BE4: =$BC4/$J4 -> 4.46% | BF4: =$BD4-$H4 -> kr 33,000.00 | BG4: =$BF4/$H4 -> 5.50% | BI4: Seniorrådgiver | BJ4: 100% | BK4: kr 22,250.00 | BL4: =$BK4+$J4 -> kr 628,250.00 | BM4: =$BK4/$J4 -> 3.67% | BN4: =$BL4-$H4 -> kr 28,250.00 | BO4: =$BN4/$H4 -> 4.71% | BP4: =BK4-BS4 -> -kr 2,750.00 | BQ4: Seniorrådgiver | BR4: 100% | BS4: kr 25,000.00 | BT4: =$BS4+$J4 -> kr 631,000.00 | BU4: =$BS4/$J4 -> 4.13% | BV4: =$BT4-$H4 -> kr 31,000.00 | BW4: =$BV4/$H4 -> 5.17% | BY4: Seniorrådgiver | BZ4: 100% | CA4: kr 25,000.00 | CB4: =$CA4+$J4 -> kr 631,000.00 | CC4: =$CA4/$J4 -> 4.13% | CD4: =$CB4-$H4 -> kr 31,000.00 | CE4: =$CD4/$H4 -> 5.17%
A5: NN2 | B5: Kvinne | C5: Miljøterapeut | D5: 2 | E5: =VLOOKUP(C5,Kilde!$D$2:$E$444,2) -> Lang | F5: 16 | G5: 10% | H5: kr 700,000.00 | I5: =H5*$B$2/100 -> kr 7,000.00 | J5: =I5+H5 -> kr 707,000.00 | M5: Miljøterapeut | N5: 100% | O5: kr 10,000.00 | P5: =$O5+$J5 -> kr 717,000.00 | Q5: =$O5/$J5 -> 1.41% | R5: =$P5-$H5 -> kr 17,000.00 | S5: =$R5/$H5 -> 2.43% | T5: =O5-W5 -> kr 5,000.00 | U5: Miljøterapeut | V5: 100% | W5: kr 5,000.00 | X5: =$W5+$J5 -> kr 712,000.00 | Y5: =$W5/$J5 -> 0.71% | Z5: =$X5-$H5 -> kr 12,000.00 | AA5: =$Z5/$H5 -> 1.71% | AC5: Miljøterapeut | AD5: 100% | AE5: kr 2,500.00 | AF5: =$AE5+$J5 -> kr 709,500.00 | AG5: =$AE5/$J5 -> 0.35% | AH5: =$AF5-$H5 -> kr 9,500.00 | AI5: =$AH5/$H5 -> 1.36% | AJ5: =AE5-AM5 -> -kr 5,000.00 | AK5: Miljøterapeut | AL5: 100% | AM5: kr 7,500.00 | AN5: =$AM5+$J5 -> kr 714,500.00 | AO5: =$AM5/$J5 -> 1.06% | AP5: =$AN5-$H5 -> kr 14,500.00 | AQ5: =$AP5/$H5 -> 2.07% | AS5: Miljøterapeut | AT5: 100% | AU5: kr 5,000.00 | AV5: =$AU5+$J5 -> kr 712,000.00 | AW5: =$AU5/$J5 -> 0.71% | AX5: =$AV5-$H5 -> kr 12,000.00 | AY5: =$AX5/$H5 -> 1.71% | AZ5: =AU5-BC5 -> 0 | BA5: Miljøterapeut | BB5: 100% | BC5: kr 5,000.00 | BD5: =$BC5+$J5 -> kr 712,000.00 | BE5: =$BC5/$J5 -> 0.71% | BF5: =$BD5-$H5 -> kr 12,000.00 | BG5: =$BF5/$H5 -> 1.71% | BI5: Miljøterapeut | BJ5: 100% | BK5: kr 5,000.00 | BL5: =$BK5+$J5 -> kr 712,000.00 | BM5: =$BK5/$J5 -> 0.71% | BN5: =$BL5-$H5 -> kr 12,000.00 | BO5: =$BN5/$H5 -> 1.71% | BP5: =BK5-BS5 -> 0 | BQ5: Miljøterapeut | BR5: 100% | BS5: kr 5,000.00 | BT5: =$BS5+$J5 -> kr 712,000.00 | BU5: =$BS5/$J5 -> 0.71% | BV5: =$BT5-$H5 -> kr 12,000.00 | BW5: =$BV5/$H5 -> 1.71% | BY5: Miljøterapeut | BZ5: 100% | CA5: kr 5,000.00 | CB5: =$CA5+$J5 -> kr 712,000.00 | CC5: =$CA5/$J5 -> 0.71% | CD5: =$CB5-$H5 -> kr 12,000.00 | CE5: =$CD5/$H5 -> 1.71%
E6: =VLOOKUP(C6,Kilde!$D$2:$E$444,2) ->  | I6: 0 | J6: 0 | P6: 0 | R6: 0 | T6: 0 | X6: 0 | Z6: 0 | AF6: 0 | AH6: 0 | AI6: =$AH6/$H6 ->  | AJ6: =AE6-AM6 -> 0 | AN6: 0 | AP6: 0 | AV6: 0 | AX6: 0 | AZ6: =AU6-BC6 -> 0 | BD6: 0 | BF6: 0 | BL6: 0 | BN6: 0 | BP6: =BK6-BS6 -> 0 | BT6: 0 | BV6: 0 | CB6: 0 | CD6: 0
E7: =VLOOKUP(C7,Kilde!$D$2:$E$444,2) ->  | I7: 0 | J7: 0 | P7: 0 | R7: 0 | T7: 0 | X7: 0 | Z7: 0 | AF7: 0 | AH7: 0 | AJ7: 0 | AN7: 0 | AP7: 0 | AV7: 0 | AX7: 0 | AZ7: 0 | BD7: 0 | BF7: 0 | BL7: 0 | BN7: 0 | BP7: 0 | BT7: 0 | BV7: 0 | CB7: 0 | CD7: 0
E8: =VLOOKUP(C8,Kilde!$D$2:$E$444,2) ->  | I8: 0 | J8: 0 | P8: 0 | R8: 0 | T8: 0 | X8: 0 | Z8: 0 | AF8: 0 | AH8: 0 | AJ8: 0 | AN8: 0 | AP8: 0 | AV8: 0 | AX8: 0 | AZ8: 0 | BD8: 0 | BF8: 0 | BL8: 0 | BN8: 0 | BP8: 0 | BT8: 0 | BV8: 0 | CB8: 0 | CD8: 0
E9: =VLOOKUP(C9,Kilde!$D$2:$E$444,2) ->  | I9: 0 | J9: 0 | P9: 0 | R9: 0 | T9: 0 | X9: 0 | Z9: 0 | AF9: 0 | AH9: 0 | AJ9: 0 | AN9: 0 | AP9: 0 | AV9: 0 | AX9: 0 | AZ9: 0 | BD9: 0 | BF9: 0 | BL9: 0 | BN9: 0 | BP9: 0 | BT9: 0 | BV9: 0 | CB9: 0 | CD9: 0
E10: =VLOOKUP(C10,Kilde!$D$2:$E$444,2) ->  | I10: 0 | J10: 0 | P10: 0 | R10: 0 | T10: 0 | X10: 0 | Z10: 0 | AF10: 0 | AH10: =$AF10-$H10 -> 0 | AJ10: 0 | AN10: 0 | AP10: 0 | AV10: 0 | AX10: 0 | AZ10: 0 | BD10: 0 | BF10: 0 | BL10: 0 | BN10: 0 | BP10: 0 | BT10: 0 | BV10: 0 | CB10: 0 | CD10: 0
E11: =VLOOKUP(C11,Kilde!$D$2:$E$444,2) ->  | I11: 0 | J11: 0 | P11: 0 | R11: 0 | T11: 0 | X11: 0 | Z11: 0 | AF11: 0 | AH11: 0 | AJ11: 0 | AN11: 0 | AP11: 0 | AV11: 0 | AX11: 0 | AZ11: 0 | BD11: 0 | BF11: 0 | BL11: 0 | BN11: 0 | BP11: 0 | BT11: 0 | BV11: 0 | CB11: 0 | CD11: 0
E12: =VLOOKUP(C12,Kilde!$D$2:$E$444,2) ->  | I12: 0 | J12: 0 | P12: 0 | R12: 0 | T12: 0 | X12: 0 | Z12: 0 | AF12: 0 | AH12: 0 | AJ12: 0 | AN12: 0 | AP12: 0 | AV12: 0 | AX12: 0 | AZ12: 0 | BD12: 0 | BF12: 0 | BL12: 0 | BN12: 0 | BP12: 0 | BT12: 0 | BV12: 0 | CB12: 0 | CD12: 0
E13: =VLOOKUP(C13,Kilde!$D$2:$E$444,2) ->  | I13: 0 | J13: 0 | P13: 0 | R13: 0 | T13: 0 | X13: 0 | Z13: 0 | AF13: 0 | AH13: 0 | AJ13: 0 | AN13: 0 | AP13: 0 | AV13: 0 | AX13: 0 | AZ13: 0 | BD13: 0 | BF13: 0 | BL13: 0 | BN13: 0 | BP13: 0 | BT13: 0 | BV13: 0 | CB13: 0 | CD13: 0
E14: =VLOOKUP(C14,Kilde!$D$2:$E$444,2) ->  | I14: 0 | J14: 0 | P14: 0 | R14: 0 | T14: 0 | X14: 0 | Z14: 0 | AF14: 0 | AH14: 0 | AJ14: 0 | AN14: 0 | AP14: 0 | AV14: 0 | AX14: 0 | AZ14: 0 | BD14: 0 | BF14: 0 | BL14: 0 | BN14: 0 | BP14: 0 | BT14: 0 | BV14: 0 | CB14: 0 | CD14: 0
E15: =VLOOKUP(C15,Kilde!$D$2:$E$444,2) ->  | I15: 0 | J15: 0 | P15: 0 | R15: 0 | T15: 0 | X15: 0 | Z15: 0 | AF15: 0 | AH15: 0 | AJ15: 0 | AN15: 0 | AP15: 0 | AV15: 0 | AX15: 0 | AZ15: 0 | BD15: 0 | BF15: 0 | BL15: 0 | BN15: 0 | BP15: 0 | BT15: 0 | BV15: 0 | CB15: 0 | CD15: 0
E16: =VLOOKUP(C16,Kilde!$D$2:$E$444,2) ->  | I16: 0 | J16: 0 | P16: 0 | R16: 0 | T16: 0 | X16: 0 | Z16: 0 | AF16: 0 | AH16: 0 | AJ16: 0 | AN16: 0 | AP16: 0 | AV16: 0 | AX16: 0 | AZ16: 0 | BD16: 0 | BF16: 0 | BL16: 0 | BN16: 0 | BP16: 0 | BT16: 0 | BV16: 0 | CB16: 0 | CD16: 0
E17: =VLOOKUP(C17,Kilde!$D$2:$E$444,2) ->  | I17: 0 | J17: 0 | P17: 0 | R17: 0 | T17: 0 | X17: 0 | Z17: 0 | AF17: 0 | AH17: 0 | AJ17: 0 | AN17: 0 | AP17: 0 | AV17: 0 | AX17: 0 | AZ17: 0 | BD17: 0 | BF17: 0 | BL17: 0 | BN17: 0 | BP17: 0 | BT17: 0 | BV17: 0 | CB17: 0 | CD17: 0
E18: =VLOOKUP(C18,Kilde!$D$2:$E$444,2) ->  | I18: 0 | J18: 0 | P18: 0 | R18: 0 | T18: 0 | X18: 0 | Z18: 0 | AF18: 0 | AH18: 0 | AJ18: 0 | AN18: 0 | AP18: 0 | AV18: 0 | AX18: 0 | AZ18: 0 | BD18: 0 | BF18: 0 | BL18: 0 | BN18: 0 | BP18: 0 | BT18: 0 | BV18: 0 | CB18: 0 | CD18: 0
E19: =VLOOKUP(C19,Kilde!$D$2:$E$444,2) ->  | I19: 0 | J19: 0 | P19: 0 | R19: 0 | T19: 0 | X19: 0 | Z19: 0 | AF19: 0 | AH19: 0 | AJ19: 0 | AN19: 0 | AP19: 0 | AV19: 0 | AX19: 0 | AZ19: 0 | BD19: 0 | BF19: 0 | BL19: 0 | BN19: 0 | BP19: 0 | BT19: 0 | BV19: 0 | CB19: 0 | CD19: 0
E20: =VLOOKUP(C20,Kilde!$D$2:$E$444,2) ->  | I20: 0 | J20: 0 | P20: 0 | R20: 0 | T20: 0 | X20: 0 | Z20: 0 | AF20: 0 | AH20: 0 | AJ20: 0 | AN20: 0 | AP20: 0 | AV20: 0 | AX20: 0 | AZ20: 0 | BD20: 0 | BF20: 0 | BL20: 0 | BN20: 0 | BP20: 0 | BT20: 0 | BV20: 0 | CB20: 0 | CD20: 0
E21: =VLOOKUP(C21,Kilde!$D$2:$E$444,2) ->  | I21: 0 | J21: 0 | P21: 0 | R21: 0 | T21: 0 | X21: 0 | Z21: 0 | AF21: 0 | AH21: 0 | AJ21: 0 | AN21: 0 | AP21: 0 | AV21: 0 | AX21: 0 | AZ21: 0 | BD21: 0 | BF21: 0 | BL21: 0 | BN21: 0 | BP21: 0 | BT21: 0 | BV21: 0 | CB21: 0 | CD21: 0
E22: =VLOOKUP(C22,Kilde!$D$2:$E$444,2) ->  | I22: 0 | J22: 0 | P22: 0 | R22: 0 | T22: 0 | X22: 0 | Z22: 0 | AF22: 0 | AH22: 0 | AJ22: 0 | AN22: 0 | AP22: 0 | AV22: 0 | AX22: 0 | AZ22: 0 | BD22: 0 | BF22: 0 | BL22: 0 | BN22: 0 | BP22: 0 | BT22: 0 | BV22: 0 | CB22: 0 | CD22: 0
E23: =VLOOKUP(C23,Kilde!$D$2:$E$444,2) ->  | I23: 0 | J23: 0 | P23: 0 | R23: 0 | T23: 0 | X23: 0 | Z23: 0 | AF23: 0 | AH23: 0 | AJ23: 0 | AN23: 0 | AP23: 0 | AV23: 0 | AX23: 0 | AZ23: 0 | BD23: 0 | BF23: 0 | BL23: 0 | BN23: 0 | BP23: 0 | BT23: 0 | BV23: 0 | CB23: 0 | CD23: 0
E24: =VLOOKUP(C24,Kilde!$D$2:$E$444,2) ->  | I24: 0 | J24: 0 | P24: 0 | R24: 0 | T24: 0 | X24: 0 | Z24: 0 | AF24: 0 | AH24: 0 | AJ24: 0 | AN24: 0 | AP24: 0 | AV24: 0 | AX24: 0 | AZ24: 0 | BD24: 0 | BF24: 0 | BL24: 0 | BN24: 0 | BP24: 0 | BT24: 0 | BV24: 0 | CB24: 0 | CD24: 0
E25: =VLOOKUP(C25,Kilde!$D$2:$E$444,2) ->  | I25: 0 | J25: 0 | P25: 0 | R25: 0 | T25: 0 | X25: 0 | Z25: 0 | AF25: 0 | AH25: 0 | AJ25: 0 | AN25: 0 | AP25: 0 | AV25: 0 | AX25: 0 | AZ25: 0 | BD25: 0 | BF25: 0 | BL25: 0 | BN25: 0 | BP25: 0 | BT25: 0 | BV25: 0 | CB25: 0 | CD25: 0
E26: =VLOOKUP(C26,Kilde!$D$2:$E$444,2) ->  | I26: 0 | J26: 0 | P26: 0 | R26: 0 | T26: 0 | X26: 0 | Z26: 0 | AF26: 0 | AH26: 0 | AJ26: 0 | AN26: 0 | AP26: 0 | AV26: 0 | AX26: 0 | AZ26: 0 | BD26: 0 | BF26: 0 | BL26: 0 | BN26: 0 | BP26: 0 | BT26: 0 | BV26: 0 | CB26: 0 | CD26: 0
E27: =VLOOKUP(C27,Kilde!$D$2:$E$444,2) ->  | I27: 0 | J27: 0 | P27: 0 | R27: 0 | T27: 0 | X27: 0 | Z27: 0 | AF27: 0 | AH27: 0 | AJ27: 0 | AN27: 0 | AP27: 0 | AV27: 0 | AX27: 0 | AZ27: 0 | BD27: 0 | BF27: 0 | BL27: 0 | BN27: 0 | BP27: 0 | BT27: 0 | BV27: 0 | CB27: 0 | CD27: 0
E28: =VLOOKUP(C28,Kilde!$D$2:$E$444,2) ->  | I28: 0 | J28: 0 | P28: 0 | R28: 0 | T28: 0 | X28: 0 | Z28: 0 | AF28: 0 | AH28: 0 | AJ28: 0 | AN28: 0 | AP28: 0 | AV28: 0 | AX28: 0 | AZ28: 0 | BD28: 0 | BF28: 0 | BL28: 0 | BN28: 0 | BP28: 0 | BT28: 0 | BV28: 0 | CB28: 0 | CD28: 0
E29: =VLOOKUP(C29,Kilde!$D$2:$E$444,2) ->  | I29: 0 | J29: 0 | P29: 0 | R29: 0 | T29: 0 | X29: 0 | Z29: 0 | AF29: 0 | AH29: 0 | AJ29: 0 | AN29: 0 | AP29: 0 | AV29: 0 | AX29: 0 | AZ29: 0 | BD29: 0 | BF29: 0 | BL29: 0 | BN29: 0 | BP29: 0 | BT29: 0 | BV29: 0 | CB29: 0 | CD29: 0
E30: =VLOOKUP(C30,Kilde!$D$2:$E$444,2) ->  | I30: 0 | J30: 0 | P30: 0 | R30: 0 | T30: 0 | X30: 0 | Z30: 0 | AF30: 0 | AH30: 0 | AJ30: 0 | AN30: 0 | AP30: 0 | AV30: 0 | AX30: 0 | AZ30: 0 | BD30: 0 | BF30: 0 | BL30: 0 | BN30: 0 | BP30: 0 | BT30: 0 | BV30: 0 | CB30: 0 | CD30: 0
E31: =VLOOKUP(C31,Kilde!$D$2:$E$444,2) ->  | I31: 0 | J31: 0 | P31: 0 | R31: 0 | T31: 0 | X31: 0 | Z31: 0 | AF31: 0 | AH31: 0 | AJ31: 0 | AN31: 0 | AP31: 0 | AV31: 0 | AX31: 0 | AZ31: 0 | BD31: 0 | BF31: 0 | BL31: 0 | BN31: 0 | BP31: 0 | BT31: 0 | BV31: 0 | CB31: 0 | CD31: 0
E32: =VLOOKUP(C32,Kilde!$D$2:$E$444,2) ->  | I32: 0 | J32: 0 | P32: 0 | R32: 0 | T32: 0 | X32: 0 | Z32: 0 | AF32: 0 | AH32: 0 | AJ32: 0 | AN32: 0 | AP32: 0 | AV32: 0 | AX32: 0 | AZ32: 0 | BD32: 0 | BF32: 0 | BL32: 0 | BN32: 0 | BP32: 0 | BT32: 0 | BV32: 0 | CB32: 0 | CD32: 0
E33: =VLOOKUP(C33,Kilde!$D$2:$E$444,2) ->  | I33: 0 | J33: 0 | P33: 0 | R33: 0 | T33: 0 | X33: 0 | Z33: 0 | AF33: 0 | AH33: 0 | AJ33: 0 | AN33: 0 | AP33: 0 | AV33: 0 | AX33: 0 | AZ33: 0 | BD33: 0 | BF33: 0 | BL33: 0 | BN33: 0 | BP33: 0 | BT33: 0 | BV33: 0 | CB33: 0 | CD33: 0
E34: =VLOOKUP(C34,Kilde!$D$2:$E$444,2) ->  | I34: 0 | J34: 0 | P34: 0 | R34: 0 | T34: 0 | X34: 0 | Z34: 0 | AF34: 0 | AH34: 0 | AJ34: 0 | AN34: 0 | AP34: 0 | AV34: 0 | AX34: 0 | AZ34: 0 | BD34: 0 | BF34: 0 | BL34: 0 | BN34: 0 | BP34: 0 | BT34: 0 | BV34: 0 | CB34: 0 | CD34: 0
E35: =VLOOKUP(C35,Kilde!$D$2:$E$444,2) ->  | I35: 0 | J35: 0 | P35: 0 | R35: 0 | T35: 0 | X35: 0 | Z35: 0 | AF35: 0 | AH35: 0 | AJ35: 0 | AN35: 0 | AP35: 0 | AV35: 0 | AX35: 0 | AZ35: 0 | BD35: 0 | BF35: 0 | BL35: 0 | BN35: 0 | BP35: 0 | BT35: 0 | BV35: 0 | CB35: 0 | CD35: 0
E36: =VLOOKUP(C36,Kilde!$D$2:$E$444,2) ->  | I36: 0 | J36: 0 | P36: 0 | R36: 0 | T36: 0 | X36: 0 | Z36: 0 | AF36: 0 | AH36: 0 | AJ36: 0 | AN36: 0 | AP36: 0 | AV36: 0 | AX36: 0 | AZ36: 0 | BD36: 0 | BF36: 0 | BL36: 0 | BN36: 0 | BP36: 0 | BT36: 0 | BV36: 0 | CB36: 0 | CD36: 0
E37: =VLOOKUP(C37,Kilde!$D$2:$E$444,2) ->  | I37: 0 | J37: 0 | P37: 0 | R37: 0 | T37: 0 | X37: 0 | Z37: 0 | AF37: 0 | AH37: 0 | AJ37: 0 | AN37: 0 | AP37: 0 | AV37: 0 | AX37: 0 | AZ37: 0 | BD37: 0 | BF37: 0 | BL37: 0 | BN37: 0 | BP37: 0 | BT37: 0 | BV37: 0 | CB37: 0 | CD37: 0
E38: =VLOOKUP(C38,Kilde!$D$2:$E$444,2) ->  | I38: 0 | J38: 0 | P38: 0 | R38: 0 | T38: 0 | X38: 0 | Z38: 0 | AF38: 0 | AH38: 0 | AJ38: 0 | AN38: 0 | AP38: 0 | AV38: 0 | AX38: 0 | AZ38: 0 | BD38: 0 | BF38: 0 | BL38: 0 | BN38: 0 | BP38: 0 | BT38: 0 | BV38: 0 | CB38: 0 | CD38: 0
E39: =VLOOKUP(C39,Kilde!$D$2:$E$444,2) ->  | I39: 0 | J39: 0 | P39: 0 | R39: 0 | T39: 0 | X39: 0 | Z39: 0 | AF39: 0 | AH39: 0 | AJ39: 0 | AN39: 0 | AP39: 0 | AV39: 0 | AX39: 0 | AZ39: 0 | BD39: 0 | BF39: 0 | BL39: 0 | BN39: 0 | BP39: 0 | BT39: 0 | BV39: 0 | CB39: 0 | CD39: 0
E40: =VLOOKUP(C40,Kilde!$D$2:$E$444,2) ->  | I40: 0 | J40: 0 | P40: 0 | R40: 0 | T40: 0 | X40: 0 | Z40: 0 | AF40: 0 | AH40: 0 | AJ40: 0 | AN40: 0 | AP40: 0 | AV40: 0 | AX40: 0 | AZ40: 0 | BD40: 0 | BF40: 0 | BL40: 0 | BN40: 0 | BP40: 0 | BT40: 0 | BV40: 0 | CB40: 0 | CD40: 0
E41: =VLOOKUP(C41,Kilde!$D$2:$E$444,2) ->  | I41: 0 | J41: 0 | P41: 0 | R41: 0 | T41: 0 | X41: 0 | Z41: 0 | AF41: 0 | AH41: 0 | AJ41: 0 | AN41: 0 | AP41: 0 | AV41: 0 | AX41: 0 | AZ41: 0 | BD41: 0 | BF41: 0 | BL41: 0 | BN41: 0 | BP41: 0 | BT41: 0 | BV41: 0 | CB41: 0 | CD41: 0
E42: =VLOOKUP(C42,Kilde!$D$2:$E$444,2) ->  | I42: 0 | J42: 0 | P42: 0 | R42: 0 | T42: 0 | X42: 0 | Z42: 0 | AF42: 0 | AH42: 0 | AJ42: 0 | AN42: 0 | AP42: 0 | AV42: 0 | AX42: 0 | AZ42: 0 | BD42: 0 | BF42: 0 | BL42: 0 | BN42: 0 | BP42: 0 | BT42: 0 | BV42: 0 | CB42: 0 | CD42: 0
E43: =VLOOKUP(C43,Kilde!$D$2:$E$444,2) ->  | I43: 0 | J43: 0 | P43: 0 | R43: 0 | T43: 0 | X43: 0 | Z43: 0 | AF43: 0 | AH43: 0 | AJ43: 0 | AN43: 0 | AP43: 0 | AV43: 0 | AX43: 0 | AZ43: 0 | BD43: 0 | BF43: 0 | BL43: 0 | BN43: 0 | BP43: 0 | BT43: 0 | BV43: 0 | CB43: 0 | CD43: 0
E44: =VLOOKUP(C44,Kilde!$D$2:$E$444,2) ->  | I44: 0 | J44: 0 | P44: 0 | R44: 0 | T44: 0 | X44: 0 | Z44: 0 | AF44: 0 | AH44: 0 | AJ44: 0 | AN44: 0 | AP44: 0 | AV44: 0 | AX44: 0 | AZ44: 0 | BD44: 0 | BF44: 0 | BL44: 0 | BN44: 0 | BP44: 0 | BT44: 0 | BV44: 0 | CB44: 0 | CD44: 0
E45: =VLOOKUP(C45,Kilde!$D$2:$E$444,2) ->  | I45: 0 | J45: 0 | P45: 0 | R45: 0 | T45: 0 | X45: 0 | Z45: 0 | AF45: 0 | AH45: 0 | AJ45: 0 | AN45: 0 | AP45: 0 | AV45: 0 | AX45: 0 | AZ45: 0 | BD45: 0 | BF45: 0 | BL45: 0 | BN45: 0 | BP45: 0 | BT45: 0 | BV45: 0 | CB45: 0 | CD45: 0
E46: =VLOOKUP(C46,Kilde!$D$2:$E$444,2) ->  | I46: 0 | J46: 0 | P46: 0 | R46: 0 | T46: 0 | X46: 0 | Z46: 0 | AF46: 0 | AH46: 0 | AJ46: 0 | AN46: 0 | AP46: 0 | AV46: 0 | AX46: 0 | AZ46: 0 | BD46: 0 | BF46: 0 | BL46: 0 | BN46: 0 | BP46: 0 | BT46: 0 | BV46: 0 | CB46: 0 | CD46: 0

Sheet Kilde
A1: Kjønn | C1: SKO | D1: STILLING | E1: LØNNSSTIGE | H1: Lønnsstige | J1: Ja
A2: Mann | C2: 1554 | D2: Avdelingssjef hos Sivilombudet | E2: Direkte pl. | H2: Direkte pl. | J2: Nei
A3: Kvinne | C3: 962 | D3: Adjunkt | E3: Lang | H3: Lang
C4: 963 | D4: Adjunkt med opprykk | E4: Lang | H4: Kort
C5: 1058 | D5: Administrasjonssjef | E5: Direkte pl.
C6: 258 | D6: Advokat | E6: Direkte pl.
C7: 1478 | D7: Advokat med møterett for Høyesterett | E7: Direkte pl.
C8: 257 | D8: Advokatfullmektig | E8: Direkte pl.
C9: 1010 | D9: Amanuensis | E9: Lang
C10: 1507 | D10: Ambassadør | E10: Direkte pl.
C11: 1118 | D11: Arbeidsleder | E11: Direkte pl.
C12: 1092 | D12: Arkitekt | E12: Kort 1)
C13: 1072 | D13: Arkivleder | E13: Direkte pl.
C14: 1531 | D14: Arrestforvarer | E14: Lang
C15: 1429 | D15: Aspirant | E15: Direkte pl.
C16: 1502 | D16: Ass. fengselsleder | E16: Direkte pl.
C17: 1503 | D17: Ass. friomsorgsleder | E17: Direkte pl.
C18: 774 | D18: Ass. fylkeslege | E18: Direkte pl.
C19: 1491 | D19: Ass. leder | E19: Direkte pl.
C20: 261 | D20: Ass. sysselmester | E20: Direkte pl.
C21: 1484 | D21: Assistent | E21: Lang
C22: 1061 | D22: Assisterende direktør | E22: Direkte pl.
C23: 1123 | D23: Assisterende kjøkkensjef | E23: Direkte pl.
C24: 1481 | D24: Assisterende sjef for Politihøgskolen | E24: Direkte pl.
C25: 129 | D25: Assisterende statsforvalter | E25: Direkte pl.
C26: 1256 | D26: Avd. radiograf | E26: Direkte pl.
C27: 1093 | D27: Avdelingsarkitekt | E27: Direkte pl.
C28: 846 | D28: Avdelingsbioingeniør | E28: Direkte pl.
C29: 1060 | D29: Avdelingsdirektør | E29: Direkte pl.
C30: 1218 | D30: Avdelingsdirektør | E30: Direkte pl.
C31: 1254 | D31: Avdelingsergoterapeut | E31: Direkte pl.
C32: 1084 | D32: Avdelingsingeniør | E32: Kort
C33: 1085 | D33: Avdelingsingeniør | E33: Kort 1)
C34: 1411 | D34: Avdelingsingeniør | E34: Lang
C35: 1407 | D35: Avdelingsleder | E35: Direkte pl.
C36: 1350 | D36: Avdelingsleder | E36: Direkte pl.
C37: 1401 | D37: Avdelingsleder | E37: Direkte pl.
C38: 1003 | D38: Avdelingsleder | E38: Direkte pl.
C39: 1029 | D39: Avdelingsleder | E39: Direkte pl.
C40: 834 | D40: Avdelingsleder/fysioterapeut | E40: Direkte pl.
C41: 784 | D41: Avdelingsoverlege | E41: Direkte pl.
C42: 1280 | D42: Avdelingssjef | E42: Direkte pl.
C43: 816 | D43: Avdelingssykepleier | E43: Direkte pl.
C44: 1260 | D44: Avdelingstannlege | E44: Direkte pl.
C45: 800 | D45: Avdelingsveterinær | E45: Direkte pl.
C46: 829 | D46: Barnehageassistent | E46: Lang
C47: 830 | D47: Barnehageassistent m/barnepleierutdanning | E47: Lang
C48: 826 | D48: Barnepleier | E48: Lang
C49: 1495 | D49: Barnevernspedagog | E49: Lang
C50: 1119 | D50: Bas | E50: Direkte pl.
C51: 1282 | D51: Bedriftsfysioterapeut | E51: Direkte pl.
C52: 791 | D52: Bedriftslege | E52: Direkte pl.
C53: 792 | D53: Bedriftsoverlege | E53: Direkte pl.
C54: 790 | D54: Bedriftssykepleier | E54: Direkte pl.
C55: 1078 | D55: Betjent | E55: Lang
C56: 1410 | D56: Bibliotekar | E56: Lang
C57: 1073 | D57: Bibliotekfullmektig | E57: Lang
C58: 844 | D58: Bioingeniør | E58: Lang
C59: 188 | D59: Brannkonstabel | E59: Lang
C60: 189 | D60: Brannmester | E60: Direkte pl.
C61: 1523 | D61: Brigader/Flaggkommandør | E61: Direkte pl.
C62: 1530 | D62: Brigader/Flaggkommandør | E62: Direkte pl.
C63: 8 | D63: Byråsjef | E63: Direkte pl.
C64: 1474 | D64: Dekan | E64: Direkte pl.
C65: 103 | D65: Dekksoffiser | E65: Direkte pl.
C66: 1062 | D66: Direktør | E66: Direkte pl.
C67: 1482 | D67: Distriktssjef | E67: Direkte pl.
C68: 1500 | D68: Distriktssjef | E68: Direkte pl.
C69: 247 | D69: Dommerfullmektig | E69: Direkte pl.
C70: 1532 | D70: Dosent | E70: Direkte pl.
C71: 179 | D71: Driftsassistent | E71: Direkte pl.
C72: 175 | D72: Driftskoordinator | E72: Direkte pl.
C73: 1137 | D73: Driftsleder | E73: Direkte pl.
C74: 400 | D74: Driftsleder | E74: Direkte pl.
C75: 1216 | D75: Driftsoperatør | E75: Lang
C76: 173 | D76: Driftsplanlegger | E76: Direkte pl.
C77: 272 | D77: Driftssjef | E77: Direkte pl.
C78: 1136 | D78: Driftstekniker | E78: Direkte pl.
C79: 996 | D79: Dykkerinstruktør | E79: Lang
C80: 1006 | D80: EDB-sjef | E80: Direkte pl.
C81: 1117 | D81: Fagarbeider | E81: Lang
C82: 1203 | D82: Fagarbeider m/fagbrev | E82: Lang
C83: 1538 | D83: Fagdirektør | E83: Direkte pl.
C84: 1539 | D84: Fagdirektør | E84: Direkte pl.
C85: 389 | D85: Fagkonsulent | E85: Direkte pl.
C86: 738 | D86: Fagsjef | E86: Direkte pl.
C87: 1376 | D87: Fagspesialist | E87: Direkte pl.
C88: 264 | D88: Fengselsbetjent | E88: Lang
C89: 265 | D89: Fengselsførstebetjent | E89: Direkte pl.
C90: 266 | D90: Fengselsinspektør | E90: Direkte pl.
C91: 1452 | D91: Fengselsleder | E91: Direkte pl.
C92: 1542 | D92: Fengselsoverbetjent | E92: Direkte pl.
C93: 139 | D93: Fenrik | E93: Kort
C94: 1228 | D94: Fenrik | E94: Direkte pl.
C95: 1536 | D95: Folkerettsrådgiver UD | E95: Direkte pl.
C96: 1109 | D96: Forsker | E96: Kort
C97: 1108 | D97: Forsker | E97: Lang
C98: 1110 | D98: Forsker | E98: Direkte pl.
C99: 1183 | D99: Forsker | E99: Direkte pl.
C100: 1111 | D100: Forskningssjef | E100: Direkte pl.
C101: 1511 | D101: Forskningstekniker | E101: Lang
C102: 1512 | D102: Forskningstekniker | E102: Direkte pl.
C103: 1104 | D103: Fotoleder | E103: Direkte pl.
C104: 1453 | D104: Friomsorgsleder | E104: Direkte pl.
C105: 269 | D105: Fritidsleder | E105: Direkte pl.
C106: 1068 | D106: Fullmektig | E106: Lang
C107: 382 | D107: Fylkesagronom | E107: Direkte pl.
C108: 779 | D108: Fylkeslege | E108: Direkte pl.
C109: 434 | D109: Fylkesskogmester | E109: Direkte pl.
C110: 435 | D110: Fylkesskogsjef | E110: Direkte pl.
C111: 822 | D111: Fylkessykepleier | E111: Direkte pl.
C112: 832 | D112: Fysioterapeut | E112: Lang
C113: 947 | D113: Førskolelærer | E113: Lang
C114: 1011 | D114: Førsteamanuensis | E114: Kort
C115: 1079 | D115: Førstebetjent | E115: Direkte pl.
C116: 1200 | D116: Førstebibliotekar | E116: Kort
C117: 1069 | D117: Førstefullmektig | E117: Lang
C118: 171 | D118: Førsteinspektør | E118: Direkte pl.
C119: 1498 | D119: Førsteinspektør | E119: Direkte pl.
C120: 82 | D120: Førsteinspektør | E120: Direkte pl.
C121: 1122 | D121: Førstekokk | E121: Lang
C122: 1408 | D122: Førstekonsulent | E122: Kort 1)
C123: 1541 | D123: Førstekrigsadvokat | E123: Direkte pl.
C124: 1198 | D124: Førstelektor | E124: Kort
C125: 1355 | D125: Førstemeteorologifullmektig | E125: Lang
C126: 1063 | D126: Førstesekretær | E126: Lang
C127: 254 | D127: Førstestatsadvokat | E127: Direkte pl.
C128: 50 | D128: Førstetollinspektør | E128: Direkte pl.
C129: 204 | D129: Garnisonstannlege | E129: Direkte pl.
C130: 256 | D130: Generaladvokat | E130: Direkte pl.
C131: 886 | D131: Generalkonsul | E131: Direkte pl.
C132: 1525 | D132: Generalløytnant/Viseadmiral | E132: Direkte pl.
C133: 1524 | D133: Generalmajor/Kontreadmiral | E133: Direkte pl.
C134: 345 | D134: Grenseinspektør | E134: Direkte pl.
C135: 1416 | D135: Grensekontrollør | E135: Lang
C136: 279 | D136: Gårdsfullmektig | E136: Direkte pl.
C137: 711 | D137: Havariinspektør | E137: Direkte pl.
C138: 1115 | D138: Hjelpearbeider | E138: Lang
C139: 827 | D139: Hjelpepleier | E139: Lang
C140: 1077 | D140: Hovedbibliotekar | E140: Direkte pl.
C141: 229 | D141: Hovedlærer | E141: Direkte pl.
C142: 967 | D142: Hovedlærer Komp./tj.tid +2 ltr. | E142: Direkte pl.
C143: 1125 | D143: Husholdsassistent | E143: Lang
C144: 1126 | D144: Husholdsbestyrer | E144: Lang
C145: 1127 | D145: Husholdsleder | E145: Direkte pl.
C146: 1128 | D146: Husøkonom | E146: Direkte pl.
C147: 1012 | D147: Høgskoledosent | E147: Direkte pl.
C148: 1008 | D148: Høgskolelektor | E148: Lang
C149: 1007 | D149: Høgskolelærer, øvingslærer | E149: Kort
C150: 1057 | D150: Informasjonssjef | E150: Direkte pl.
C151: 1365 | D151: Informasjonssjef | E151: Direkte pl.
C152: 1275 | D152: Ingeniør | E152: Lang
C153: 1083 | D153: Ingeniør | E153: Direkte pl.
C154: 170 | D154: Inspektør | E154: Lang
C155: 676 | D155: Inspektør | E155: Direkte pl.
C156: 1343 | D156: Inspektør | E156: Direkte pl.
C157: 80 | D157: Inspektør | E157: Kort
C158: 1437 | D158: Inspektør | E158: Kort 1)
C159: 1475 | D159: Instituttleder | E159: Direkte pl.
C160: 969 | D160: Instruktør | E160: Lang
C161: 1015 | D161: Instruktørtannlege | E161: Direkte pl.
C162: 1353 | D162: Instruktørtannlege m/godkjent spesialistutdanning | E162: Direkte pl.
C163: 1032 | D163: Instruktørtannpleier | E163: Lang
C164: 1450 | D164: Internasjonal rådgiver | E164: Direkte pl.
C165: 1392 | D165: Internasjonal rådgiver | E165: Direkte pl.
C166: 968 | D166: Internatassistent | E166: Lang
C167: 455 | D167: Jordskiftedommer | E167: Direkte pl.
C168: 1551 | D168: Jordskiftedommerfullmektig | E168: Direkte pl.
C169: 1467 | D169: Jordskifterettsleder | E169: Direkte pl.
C170: 1560 | D170: Kadett | E170: Kort
C171: 1519 | D171: Kaptein/Rittmester/Kapteinløytnant | E171: Lang
C172: 1526 | D172: Kaptein/Rittmester/Kapteinløytnant | E172: Direkte pl.
C173: 1557 | D173: Kaptein/Rittmester/Kapteinløytnant II | E173: Kort
C174: 1124 | D174: Kjøkkensjef | E174: Direkte pl.
C175: 1033 | D175: Klinikkavdelingsleder | E175: Direkte pl.
C176: 1379 | D176: Klinikksekretær | E176: Lang
C177: 1281 | D177: Klinikksjef | E177: Direkte pl.
C178: 1308 | D178: Klinikkveterinær | E178: Direkte pl.
C179: 1496 | D179: Klinisk barnevernspedagog | E179: Lang
C180: 1173 | D180: Klinisk sosionom | E180: Lang
C181: 1184 | D181: Kokk | E181: Lang
C182: 1577 | D182: Kommandérsersjant,/Orlogsmester | E182: Direkte pl.
C183: 1568 | D183: Kommandérsersjant/Orlogsmester | E183: Direkte pl.
C184: 1581 | D184: Kommandérsersjant/Orlogsmester II | E184: Lang
C185: 1535 | D185: Kommunikasjonssjef | E185: Direkte pl.
C186: 1065 | D186: Konsulent | E186: Lang
C187: 1071 | D187: Kontorleder | E187: Direkte pl.
C188: 1054 | D188: Kontorsjef | E188: Direkte pl.
C189: 1572 | D189: Korporal/Ledende konstabel | E189: Direkte pl.
C190: 1563 | D190: Korporal/Ledende konstabel | E190: Lang
C191: 1559 | D191: Korporal/Ledende konstabel II | E191: Kort
C192: 176 | D192: Kvalitetsleder | E192: Direkte pl.
C193: 1097 | D193: Laborant | E193: Lang
C194: 1098 | D194: Laborantleder | E194: Direkte pl.
C195: 1096 | D195: Laboratorieassistent | E195: Lang
C196: 165 | D196: Lagerbetjent | E196: Direkte pl.
C197: 164 | D197: Lagerkontrollør | E197: Direkte pl.
C198: 163 | D198: Lagerleder | E198: Direkte pl.
C199: 168 | D199: Lagersjef | E199: Direkte pl.
C200: 1342 | D200: Ledende arrestforvarer | E200: Direkte pl.
... 244 more rows
